[Event "Early-Titled-Tuesday-Blitz-July-09-2024"]
[Site "Chess.com"]
[Date "2024.07.09"]
[Round "2"]
[White "Crazy_girl99"]
[Black "Matols"]
[Result "1-0"]
[WhiteElo "2631"]
[BlackElo "2351"]
[TimeControl "180+1"]
[EndTime "8:12:43 PDT"]
[Termination "Crazy_girl99 won by resignation"]

1. Nf3 {[%clk 0:03:00.9]} 1... d5 {[%clk 0:02:59.2]} 2. g3 {[%clk 0:03:01.2]}
2... Nf6 {[%clk 0:02:59.5]} 3. Bg2 {[%clk 0:03:01.2]} 3... e6 {[%clk 0:02:58.7]}
4. O-O {[%clk 0:03:01.7]} 4... Be7 {[%clk 0:02:59.3]} 5. d3 {[%clk 0:03:02.2]}
5... O-O {[%clk 0:02:59.9]} 6. Nbd2 {[%clk 0:03:02.7]} 6... c5 {[%clk
0:02:59.8]} 7. e4 {[%clk 0:03:03.1]} 7... Nc6 {[%clk 0:02:59.5]} 8. Re1 {[%clk
0:03:02.9]} 8... b5 {[%clk 0:02:58.9]} 9. e5 {[%clk 0:03:01.1]} 9... Nd7 {[%clk
0:02:58.9]} 10. Nf1 {[%clk 0:03:01.7]} 10... a5 {[%clk 0:02:58.4]} 11. Bf4
{[%clk 0:03:01.2]} 11... b4 {[%clk 0:02:58.1]} 12. h4 {[%clk 0:03:01]} 12... a4
{[%clk 0:02:58]} 13. h5 {[%clk 0:03:00.7]} 13... a3 {[%clk 0:02:57.4]} 14. b3
{[%clk 0:02:59.1]} 14... f5 {[%clk 0:02:27.9]} 15. exf6 {[%clk 0:02:51.8]} 15...
Bxf6 {[%clk 0:02:27.4]} 16. Rxe6 {[%clk 0:02:49.5]} 16... Bxa1 {[%clk
0:02:25.1]} 17. Qxa1 {[%clk 0:02:47.2]} 17... Bb7 {[%clk 0:02:15.3]} 18. h6
{[%clk 0:02:45.3]} 18... Rf7 {[%clk 0:02:04.5]} 19. Ng5 {[%clk 0:02:45.2]} 19...
Re7 {[%clk 0:01:56.7]} 20. Rxe7 {[%clk 0:02:34.6]} 20... Qxe7 {[%clk 0:01:57.6]}
21. Bxd5+ {[%clk 0:02:34.8]} 21... Kf8 {[%clk 0:01:53.7]} 22. hxg7+ {[%clk
0:02:34.7]} 1-0

[Event "Early-Titled-Tuesday-Blitz-July-09-2024"]
[Site "Chess.com"]
[Date "2024.07.09"]
[Round "2"]
[White "LunaTheTuna2013"]
[Black "FabianoCaruana"]
[Result "0-1"]
[WhiteElo "1995"]
[BlackElo "3182"]
[TimeControl "180+1"]
[EndTime "8:13:03 PDT"]
[Termination "FabianoCaruana won by checkmate"]

1. d4 {[%clk 0:03:00.9]} 1... Nc6 {[%clk 0:03:00.9]} 2. c4 {[%clk 0:03:00.5]}
2... e6 {[%clk 0:02:59.8]} 3. Nc3 {[%clk 0:03:00.1]} 3... Bb4 {[%clk 0:02:58.5]}
4. e3 {[%clk 0:02:57.4]} 4... Nf6 {[%clk 0:02:58.1]} 5. Nf3 {[%clk 0:02:56]}
5... d6 {[%clk 0:02:56.4]} 6. Bd3 {[%clk 0:02:52.2]} 6... O-O {[%clk 0:02:55.9]}
7. O-O {[%clk 0:02:51.8]} 7... Bxc3 {[%clk 0:02:54.9]} 8. bxc3 {[%clk
0:02:51.5]} 8... e5 {[%clk 0:02:55.8]} 9. e4 {[%clk 0:02:46.5]} 9... h6 {[%clk
0:02:52.7]} 10. Be3 {[%clk 0:02:45.7]} 10... Re8 {[%clk 0:02:51.6]} 11. Qc2
{[%clk 0:02:44.5]} 11... Bg4 {[%clk 0:02:48.9]} 12. Nd2 {[%clk 0:02:42.9]} 12...
b6 {[%clk 0:02:48.4]} 13. f3 {[%clk 0:02:42.6]} 13... Bd7 {[%clk 0:02:46.2]} 14.
c5 {[%clk 0:02:29.8]} 14... dxc5 {[%clk 0:02:44.1]} 15. dxc5 {[%clk 0:02:29.6]}
15... Qe7 {[%clk 0:02:43.6]} 16. cxb6 {[%clk 0:02:28.1]} 16... axb6 {[%clk
0:02:43.2]} 17. c4 {[%clk 0:02:24.7]} 17... Nb4 {[%clk 0:02:42.6]} 18. Qc3
{[%clk 0:02:18.8]} 18... Nxa2 {[%clk 0:02:41.3]} 19. Qb3 {[%clk 0:02:09.1]}
19... Ra3 {[%clk 0:02:38.6]} 20. Qb2 {[%clk 0:02:06.6]} 20... Rxd3 {[%clk
0:02:37.6]} 21. Rxa2 {[%clk 0:02:02.6]} 21... Rxe3 {[%clk 0:02:36.4]} 22. Rfa1
{[%clk 0:02:00.9]} 22... Qc5 {[%clk 0:02:35.4]} 23. Kh1 {[%clk 0:02:01.2]} 23...
Re2 {[%clk 0:02:35.1]} 24. Qc3 {[%clk 0:02:00.2]} 24... Qf2 {[%clk 0:02:33]} 25.
Rg1 {[%clk 0:01:58.1]} 25... Bh3 {[%clk 0:02:32.4]} 26. gxh3 {[%clk 0:01:44]}
26... Qxh2# {[%clk 0:02:29.4]} 0-1

[Event "Early-Titled-Tuesday-Blitz-July-09-2024"]
[Site "Chess.com"]
[Date "2024.07.09"]
[Round "2"]
[White "Brown_Mamba24"]
[Black "JunjiCol"]
[Result "0-1"]
[WhiteElo "2517"]
[BlackElo "2346"]
[TimeControl "180+1"]
[EndTime "8:13:03 PDT"]
[Termination "JunjiCol won by resignation"]

1. d4 {[%clk 0:03:00.9]} 1... Nf6 {[%clk 0:02:57.8]} 2. c4 {[%clk 0:03:01.1]}
2... g6 {[%clk 0:02:55.2]} 3. Nc3 {[%clk 0:03:01.3]} 3... d5 {[%clk 0:02:54.9]}
4. cxd5 {[%clk 0:03:02.2]} 4... Nxd5 {[%clk 0:02:54.6]} 5. Bd2 {[%clk
0:03:03.1]} 5... c5 {[%clk 0:02:53.8]} 6. dxc5 {[%clk 0:02:58.4]} 6... Bg7
{[%clk 0:02:53]} 7. b4 {[%clk 0:02:53]} 7... Nxc3 {[%clk 0:02:49.2]} 8. Qb3
{[%clk 0:02:52.2]} 8... Ne4 {[%clk 0:02:47]} 9. Rd1 {[%clk 0:02:51.2]} 9... Be6
{[%clk 0:02:45.2]} 10. Qc2 {[%clk 0:02:48.5]} 10... Nxd2 {[%clk 0:02:43.8]} 11.
Rxd2 {[%clk 0:02:48.8]} 11... Qc7 {[%clk 0:02:39.7]} 12. Qa4+ {[%clk 0:02:48.3]}
12... Nc6 {[%clk 0:02:38.6]} 13. b5 {[%clk 0:02:48]} 13... Bc3 {[%clk
0:02:34.4]} 14. bxc6 {[%clk 0:02:45.7]} 14... Rd8 {[%clk 0:02:23]} 15. Nf3
{[%clk 0:02:33.2]} 15... O-O {[%clk 0:02:02.3]} 16. e3 {[%clk 0:02:28.4]} 16...
Rxd2 {[%clk 0:01:59.2]} 17. Nxd2 {[%clk 0:02:27.4]} 17... Rd8 {[%clk 0:01:59.3]}
18. Bc4 {[%clk 0:02:24.8]} 18... Bxd2+ {[%clk 0:01:55.2]} 19. Ke2 {[%clk
0:02:22.7]} 19... Qxc6 {[%clk 0:01:51.4]} 20. Bb5 {[%clk 0:02:19.8]} 20... Qxg2
{[%clk 0:01:47.4]} 0-1

[Event "Early-Titled-Tuesday-Blitz-July-09-2024"]
[Site "Chess.com"]
[Date "2024.07.09"]
[Round "2"]
[White "Jakhongir-Vakhidov"]
[Black "Orest_Vovk"]
[Result "1/2-1/2"]
[WhiteElo "3013"]
[BlackElo "2539"]
[TimeControl "180+1"]
[EndTime "8:13:32 PDT"]
[Termination "Game drawn by repetition"]

1. c4 {[%clk 0:02:26.1]} 1... g5 {[%clk 0:02:58]} 2. Nc3 {[%clk 0:01:51.3]} 2...
h6 {[%clk 0:02:57.7]} 3. d4 {[%clk 0:01:51]} 3... Bg7 {[%clk 0:02:58.2]} 4. h4
{[%clk 0:01:47.8]} 4... c5 {[%clk 0:02:43.2]} 5. d5 {[%clk 0:01:44.4]} 5...
Bxc3+ {[%clk 0:02:43.1]} 6. bxc3 {[%clk 0:01:45.3]} 6... Qa5 {[%clk 0:02:43.4]}
7. hxg5 {[%clk 0:01:41.3]} 7... hxg5 {[%clk 0:02:42.9]} 8. Rxh8 {[%clk
0:01:39.6]} 8... Qxc3+ {[%clk 0:02:42.9]} 9. Qd2 {[%clk 0:01:35.6]} 9... Qxh8
{[%clk 0:02:43.8]} 10. Qxg5 {[%clk 0:01:34.4]} 10... Qc3+ {[%clk 0:02:26.8]} 11.
Kd1 {[%clk 0:01:34.3]} 11... Qd4+ {[%clk 0:02:24.3]} 12. Ke1 {[%clk 0:01:33.9]}
12... Qc3+ {[%clk 0:02:24.2]} 13. Kd1 {[%clk 0:01:34.1]} 13... Qd4+ {[%clk
0:02:24.3]} 14. Ke1 {[%clk 0:00:51.1]} 14... Qc3+ {[%clk 0:02:23.6]} 15. Kd1
{[%clk 0:00:51.4]} 1/2-1/2

[Event "Early-Titled-Tuesday-Blitz-July-09-2024"]
[Site "Chess.com"]
[Date "2024.07.09"]
[Round "2"]
[White "Fore_Man"]
[Black "Happy1712Drummer"]
[Result "0-1"]
[WhiteElo "2221"]
[BlackElo "2472"]
[TimeControl "180+1"]
[EndTime "8:13:34 PDT"]
[Termination "Happy1712Drummer won by resignation"]

1. c4 {[%clk 0:03:00.9]} 1... c5 {[%clk 0:02:57.6]} 2. Nf3 {[%clk 0:02:59.1]}
2... Nc6 {[%clk 0:02:57.2]} 3. d4 {[%clk 0:02:59.3]} 3... cxd4 {[%clk
0:02:55.7]} 4. Nxd4 {[%clk 0:03:00.2]} 4... g6 {[%clk 0:02:51.3]} 5. Nc3 {[%clk
0:02:59]} 5... Bg7 {[%clk 0:02:51.3]} 6. Nxc6 {[%clk 0:02:59.1]} 6... bxc6
{[%clk 0:02:50.3]} 7. g3 {[%clk 0:02:59.1]} 7... Nf6 {[%clk 0:02:48.1]} 8. Bg2
{[%clk 0:02:57.8]} 8... O-O {[%clk 0:02:48.7]} 9. O-O {[%clk 0:02:57.4]} 9...
Rb8 {[%clk 0:02:28.9]} 10. Qc2 {[%clk 0:02:55]} 10... Qc7 {[%clk 0:02:26.5]} 11.
b3 {[%clk 0:02:52.3]} 11... d6 {[%clk 0:02:25.8]} 12. Bb2 {[%clk 0:02:52.1]}
12... Bf5 {[%clk 0:02:20.5]} 13. Qd2 {[%clk 0:02:50.1]} 13... Rfd8 {[%clk
0:02:12.9]} 14. Rac1 {[%clk 0:02:44.3]} 14... Nd7 {[%clk 0:01:51.7]} 15. Rfd1
{[%clk 0:02:42.1]} 15... Nc5 {[%clk 0:01:49]} 16. b4 {[%clk 0:02:18.8]} 16...
Rxb4 {[%clk 0:01:38.9]} 17. Nd5 {[%clk 0:02:07.4]} 17... Rxb2 {[%clk 0:01:36.8]}
18. Nxc7 {[%clk 0:02:06.4]} 18... Rxd2 {[%clk 0:01:30.2]} 19. Rxd2 {[%clk
0:02:04.6]} 19... Rc8 {[%clk 0:01:21]} 0-1

[Event "Early-Titled-Tuesday-Blitz-July-09-2024"]
[Site "Chess.com"]
[Date "2024.07.09"]
[Round "2"]
[White "koncheto"]
[Black "dropstoneDP"]
[Result "0-1"]
[WhiteElo "2666"]
[BlackElo "3032"]
[TimeControl "180+1"]
[EndTime "8:13:50 PDT"]
[Termination "dropstoneDP won by resignation"]

1. e4 {[%clk 0:02:59.9]} 1... e5 {[%clk 0:02:59.3]} 2. Nf3 {[%clk 0:02:58.4]}
2... Nf6 {[%clk 0:02:59.5]} 3. Nxe5 {[%clk 0:02:58.4]} 3... d6 {[%clk
0:02:59.6]} 4. Nf3 {[%clk 0:02:59]} 4... Nxe4 {[%clk 0:02:59.9]} 5. d4 {[%clk
0:02:59.7]} 5... d5 {[%clk 0:02:58.7]} 6. Bd3 {[%clk 0:03:00.1]} 6... Bf5 {[%clk
0:02:59.2]} 7. O-O {[%clk 0:03:00.6]} 7... Be7 {[%clk 0:02:59.8]} 8. c4 {[%clk
0:03:01.1]} 8... dxc4 {[%clk 0:02:59.4]} 9. Bxc4 {[%clk 0:03:02]} 9... O-O
{[%clk 0:02:59.5]} 10. Nc3 {[%clk 0:03:02.6]} 10... Nc6 {[%clk 0:02:59.1]} 11.
Re1 {[%clk 0:03:00.8]} 11... Nd6 {[%clk 0:02:57.1]} 12. Bd3 {[%clk 0:02:56.5]}
12... Bxd3 {[%clk 0:02:56.2]} 13. Qxd3 {[%clk 0:02:56.8]} 13... Re8 {[%clk
0:02:55.8]} 14. Bf4 {[%clk 0:02:53.7]} 14... Bf6 {[%clk 0:02:54.1]} 15. Nd5
{[%clk 0:02:48.1]} 15... Re6 {[%clk 0:02:26.9]} 16. Rxe6 {[%clk 0:02:19.3]}
16... fxe6 {[%clk 0:02:27.8]} 17. Nxf6+ {[%clk 0:02:18.6]} 17... Qxf6 {[%clk
0:02:28.5]} 18. Bg5 {[%clk 0:02:02.3]} 18... Qf5 {[%clk 0:02:27.8]} 19. Qb3
{[%clk 0:01:59]} 19... Qd5 {[%clk 0:02:26.5]} 20. Qe3 {[%clk 0:01:50.5]} 20...
Nf5 {[%clk 0:02:25.4]} 21. Qe2 {[%clk 0:01:44.3]} 21... Ncxd4 {[%clk 0:02:24.9]}
22. Nxd4 {[%clk 0:01:44.3]} 22... Nxd4 {[%clk 0:02:25.8]} 23. Qd3 {[%clk
0:01:39.4]} 23... Rf8 {[%clk 0:02:24.1]} 24. Qd2 {[%clk 0:01:33.4]} 24... c5
{[%clk 0:02:10.2]} 25. Re1 {[%clk 0:01:26.1]} 25... b6 {[%clk 0:02:08.6]} 26.
Bf4 {[%clk 0:01:22.8]} 26... Rxf4 {[%clk 0:02:05.9]} 0-1

[Event "Early-Titled-Tuesday-Blitz-July-09-2024"]
[Site "Chess.com"]
[Date "2024.07.09"]
[Round "2"]
[White "kleinebeer98"]
[Black "PedroGil25"]
[Result "1-0"]
[WhiteElo "2943"]
[BlackElo "2634"]
[TimeControl "180+1"]
[EndTime "8:13:59 PDT"]
[Termination "kleinebeer98 won by resignation"]

1. e4 {[%clk 0:02:59.7]} 1... c5 {[%clk 0:03:00.1]} 2. Nf3 {[%clk 0:02:58.4]}
2... e6 {[%clk 0:03:00.2]} 3. d4 {[%clk 0:02:59.1]} 3... cxd4 {[%clk 0:03:01.1]}
4. Bg5 {[%clk 0:02:59]} 4... Qc7 {[%clk 0:02:57.6]} 5. Nxd4 {[%clk 0:02:57.4]}
5... a6 {[%clk 0:02:56.7]} 6. Nd2 {[%clk 0:02:53]} 6... Nf6 {[%clk 0:02:56]} 7.
Bd3 {[%clk 0:02:49.2]} 7... Be7 {[%clk 0:02:52.4]} 8. O-O {[%clk 0:02:48.3]}
8... d6 {[%clk 0:02:51.9]} 9. c4 {[%clk 0:02:42.5]} 9... Nbd7 {[%clk 0:02:37.6]}
10. Rc1 {[%clk 0:02:40.3]} 10... O-O {[%clk 0:02:34]} 11. b4 {[%clk 0:02:31.1]}
11... b6 {[%clk 0:02:29.3]} 12. N2b3 {[%clk 0:02:26.1]} 12... Bb7 {[%clk
0:02:28.3]} 13. Qe2 {[%clk 0:02:26.7]} 13... Rfe8 {[%clk 0:02:15.1]} 14. f4
{[%clk 0:02:20.6]} 14... Bf8 {[%clk 0:02:14.2]} 15. Rce1 {[%clk 0:02:17.4]}
15... d5 {[%clk 0:02:10]} 16. e5 {[%clk 0:02:16.8]} 16... Ne4 {[%clk 0:02:09.5]}
17. cxd5 {[%clk 0:02:07.8]} 17... exd5 {[%clk 0:02:10.4]} 18. Rc1 {[%clk
0:01:59.7]} 18... Qb8 {[%clk 0:02:05.2]} 19. Bxe4 {[%clk 0:01:59.7]} 19... dxe4
{[%clk 0:02:04.7]} 20. Qg4 {[%clk 0:01:59.7]} 20... Nxe5 {[%clk 0:01:50.7]} 21.
fxe5 {[%clk 0:01:59.5]} 21... Qxe5 {[%clk 0:01:51.6]} 22. Bf6 {[%clk 0:01:50.4]}
22... Qd5 {[%clk 0:01:47.5]} 23. Bxg7 {[%clk 0:01:43.2]} 23... Bxg7 {[%clk
0:01:45.7]} 24. Nf5 {[%clk 0:01:43.7]} 1-0

[Event "Early-Titled-Tuesday-Blitz-July-09-2024"]
[Site "Chess.com"]
[Date "2024.07.09"]
[Round "2"]
[White "AGW2016"]
[Black "GMG"]
[Result "1/2-1/2"]
[WhiteElo "2578"]
[BlackElo "2826"]
[TimeControl "180+1"]
[EndTime "8:14:02 PDT"]
[Termination "Game drawn by repetition"]

1. d4 {[%clk 0:03:00.9]} 1... d5 {[%clk 0:02:57.6]} 2. Nf3 {[%clk 0:03:01.6]}
2... Nf6 {[%clk 0:02:57.5]} 3. Bf4 {[%clk 0:03:02.3]} 3... c5 {[%clk 0:02:55.2]}
4. e3 {[%clk 0:03:02.5]} 4... Nc6 {[%clk 0:02:53]} 5. Nbd2 {[%clk 0:03:03.1]}
5... Bf5 {[%clk 0:02:50.4]} 6. dxc5 {[%clk 0:03:03.4]} 6... e6 {[%clk
0:02:48.4]} 7. Nd4 {[%clk 0:03:03.8]} 7... Bxc5 {[%clk 0:02:40.7]} 8. Nxf5
{[%clk 0:03:04.2]} 8... exf5 {[%clk 0:02:41.6]} 9. c3 {[%clk 0:03:04.5]} 9...
O-O {[%clk 0:02:33.9]} 10. Be2 {[%clk 0:03:04.2]} 10... Qe7 {[%clk 0:02:31.6]}
11. O-O {[%clk 0:03:04.4]} 11... Rad8 {[%clk 0:02:31.4]} 12. Nb3 {[%clk
0:03:04.5]} 12... Bd6 {[%clk 0:02:29.8]} 13. Bg5 {[%clk 0:03:03]} 13... h6
{[%clk 0:02:04.2]} 14. Bxf6 {[%clk 0:02:52.6]} 14... Qxf6 {[%clk 0:02:05.1]} 15.
Bf3 {[%clk 0:02:52.6]} 15... f4 {[%clk 0:01:41.4]} 16. exf4 {[%clk 0:02:50.5]}
16... Bxf4 {[%clk 0:01:37.1]} 17. g3 {[%clk 0:02:49.4]} 17... Bc7 {[%clk
0:01:37.6]} 18. Bg2 {[%clk 0:02:49.8]} 18... Bb6 {[%clk 0:01:35.6]} 19. Qd2
{[%clk 0:02:40.7]} 19... d4 {[%clk 0:01:35.2]} 20. c4 {[%clk 0:02:41.2]} 20...
d3 {[%clk 0:01:07.3]} 21. c5 {[%clk 0:02:37.8]} 21... Bc7 {[%clk 0:01:07.6]} 22.
Rfe1 {[%clk 0:02:20.8]} 22... Be5 {[%clk 0:01:07.1]} 23. Rab1 {[%clk 0:02:19.4]}
23... Rd7 {[%clk 0:01:00.8]} 24. Bh3 {[%clk 0:02:14.5]} 24... Rd5 {[%clk
0:00:59.3]} 25. Bg2 {[%clk 0:02:14.5]} 25... Rd7 {[%clk 0:00:58.8]} 26. Bh3
{[%clk 0:02:14.8]} 26... Rd5 {[%clk 0:00:57.2]} 27. Bg2 {[%clk 0:02:15]} 27...
Rd7 {[%clk 0:00:55]} 1/2-1/2

[Event "Early-Titled-Tuesday-Blitz-July-09-2024"]
[Site "Chess.com"]
[Date "2024.07.09"]
[Round "2"]
[White "GarayevKanan"]
[Black "kacperkarwowski"]
[Result "0-1"]
[WhiteElo "2748"]
[BlackElo "2554"]
[TimeControl "180+1"]
[EndTime "8:14:06 PDT"]
[Termination "kacperkarwowski won by resignation"]

1. d4 {[%clk 0:03:00.9]} 1... d5 {[%clk 0:02:58.4]} 2. Nf3 {[%clk 0:02:58.6]}
2... e6 {[%clk 0:02:57.9]} 3. Bf4 {[%clk 0:02:58.7]} 3... Bd6 {[%clk 0:02:54.7]}
4. Bxd6 {[%clk 0:02:58.1]} 4... Qxd6 {[%clk 0:02:53.7]} 5. c3 {[%clk 0:02:48.4]}
5... Nd7 {[%clk 0:02:47.2]} 6. Nbd2 {[%clk 0:02:47.8]} 6... Ngf6 {[%clk
0:02:38.3]} 7. e3 {[%clk 0:02:48]} 7... e5 {[%clk 0:02:38.6]} 8. dxe5 {[%clk
0:02:47.1]} 8... Nxe5 {[%clk 0:02:39.5]} 9. Nxe5 {[%clk 0:02:47.8]} 9... Qxe5
{[%clk 0:02:40.4]} 10. Nf3 {[%clk 0:02:47.6]} 10... Qe7 {[%clk 0:02:41]} 11. Be2
{[%clk 0:02:46.4]} 11... O-O {[%clk 0:02:40.9]} 12. O-O {[%clk 0:02:47]} 12...
c5 {[%clk 0:02:37.9]} 13. Qb3 {[%clk 0:02:41.5]} 13... b6 {[%clk 0:02:36.5]} 14.
a4 {[%clk 0:02:41.3]} 14... Be6 {[%clk 0:02:17.5]} 15. Qa3 {[%clk 0:02:39.3]}
15... h6 {[%clk 0:02:12.3]} 16. a5 {[%clk 0:02:39]} 16... Qb7 {[%clk 0:02:12.4]}
17. Rfd1 {[%clk 0:02:34.2]} 17... Rfd8 {[%clk 0:02:09.5]} 18. b4 {[%clk
0:02:28.3]} 18... Ne4 {[%clk 0:02:01.7]} 19. bxc5 {[%clk 0:02:19.4]} 19... bxc5
{[%clk 0:02:00.9]} 20. Rdb1 {[%clk 0:02:20]} 20... Qc7 {[%clk 0:01:58.2]} 21. a6
{[%clk 0:02:17.2]} 21... Rab8 {[%clk 0:01:50.8]} 22. Bd3 {[%clk 0:02:17.6]}
22... Rb6 {[%clk 0:01:45.5]} 23. Rxb6 {[%clk 0:02:14.3]} 23... Qxb6 {[%clk
0:01:44.7]} 24. Rb1 {[%clk 0:02:14.4]} 24... Qd6 {[%clk 0:01:32.3]} 25. Rb7
{[%clk 0:02:10.5]} 25... c4 {[%clk 0:01:32]} 26. Qxd6 {[%clk 0:01:55.8]} 26...
Nxd6 {[%clk 0:01:32.9]} 0-1

[Event "Early-Titled-Tuesday-Blitz-July-09-2024"]
[Site "Chess.com"]
[Date "2024.07.09"]
[Round "2"]
[White "ozates"]
[Black "glebus008"]
[Result "1-0"]
[WhiteElo "2604"]
[BlackElo "2383"]
[TimeControl "180+1"]
[EndTime "8:14:07 PDT"]
[Termination "ozates won by checkmate"]

1. e4 {[%clk 0:02:54.6]} 1... Nc6 {[%clk 0:00:19.1]} 2. Nf3 {[%clk 0:02:50.4]}
2... d5 {[%clk 0:00:19.2]} 3. exd5 {[%clk 0:02:50.7]} 3... Qxd5 {[%clk
0:00:19.9]} 4. Nc3 {[%clk 0:02:51.4]} 4... Qh5 {[%clk 0:00:19.7]} 5. Nb5 {[%clk
0:02:51.1]} 5... Kd8 {[%clk 0:00:18.8]} 6. h3 {[%clk 0:02:47.7]} 6... Bg4 {[%clk
0:00:17.7]} 7. hxg4 {[%clk 0:02:42]} 7... Qxh1 {[%clk 0:00:17.2]} 8. d4 {[%clk
0:02:41.3]} 8... e6 {[%clk 0:00:14.6]} 9. d5 {[%clk 0:02:40.1]} 9... exd5 {[%clk
0:00:08.6]} 10. Qxd5+ {[%clk 0:02:41]} 10... Bd6 {[%clk 0:00:08.4]} 11. Nxd6
{[%clk 0:02:36.6]} 11... cxd6 {[%clk 0:00:09.3]} 12. Qxd6+ {[%clk 0:02:35.8]}
12... Kc8 {[%clk 0:00:09.1]} 13. Bf4 {[%clk 0:02:34.7]} 13... Nge7 {[%clk
0:00:05.8]} 14. Qc7# {[%clk 0:02:34.7]} 1-0

[Event "Early-Titled-Tuesday-Blitz-July-09-2024"]
[Site "Chess.com"]
[Date "2024.07.09"]
[Round "2"]
[White "EvilMorty23"]
[Black "Lion-Al-Messi"]
[Result "0-1"]
[WhiteElo "2398"]
[BlackElo "2658"]
[TimeControl "180+1"]
[EndTime "8:14:11 PDT"]
[Termination "Lion-Al-Messi won by checkmate"]

1. e4 {[%clk 0:02:58.9]} 1... e6 {[%clk 0:03:00]} 2. d4 {[%clk 0:02:59.1]} 2...
d5 {[%clk 0:03:00.2]} 3. Nd2 {[%clk 0:02:59.6]} 3... c5 {[%clk 0:02:59.7]} 4.
Ngf3 {[%clk 0:02:59.7]} 4... cxd4 {[%clk 0:02:59.2]} 5. exd5 {[%clk 0:03:00.2]}
5... Qxd5 {[%clk 0:02:58.7]} 6. Bc4 {[%clk 0:03:00.7]} 6... Qd6 {[%clk
0:02:59.3]} 7. O-O {[%clk 0:03:01.6]} 7... Nf6 {[%clk 0:02:59.6]} 8. Nb3 {[%clk
0:03:01.9]} 8... Nc6 {[%clk 0:03:00.3]} 9. Nbxd4 {[%clk 0:03:02.4]} 9... Nxd4
{[%clk 0:03:01.2]} 10. Nxd4 {[%clk 0:03:03]} 10... Be7 {[%clk 0:03:01.8]} 11.
Re1 {[%clk 0:02:34.9]} 11... O-O {[%clk 0:03:01.2]} 12. Bg5 {[%clk 0:02:34.2]}
12... Qc5 {[%clk 0:02:57]} 13. Nxe6 {[%clk 0:02:05]} 13... fxe6 {[%clk
0:02:52.4]} 14. Bxf6 {[%clk 0:01:52.5]} 14... Bxf6 {[%clk 0:02:53.3]} 15. Bb3
{[%clk 0:01:45.6]} 15... Bxb2 {[%clk 0:02:49.5]} 16. Rb1 {[%clk 0:01:46]} 16...
Qxf2+ {[%clk 0:02:49.6]} 17. Kh1 {[%clk 0:01:46.5]} 17... Bc3 {[%clk 0:02:49.3]}
18. Re2 {[%clk 0:01:44]} 18... Qf6 {[%clk 0:02:47.4]} 19. h3 {[%clk 0:01:42.4]}
19... Kh8 {[%clk 0:02:47.4]} 20. Qd3 {[%clk 0:01:41.7]} 20... Be5 {[%clk
0:02:40.1]} 21. Re3 {[%clk 0:01:37.2]} 21... Bf4 {[%clk 0:02:35.7]} 22. Rf1
{[%clk 0:01:34]} 22... e5 {[%clk 0:02:33.8]} 23. g3 {[%clk 0:01:31]} 23... Bxh3
{[%clk 0:02:33.3]} 24. gxf4 {[%clk 0:01:23.2]} 24... Bxf1 {[%clk 0:02:32.8]} 25.
Qxf1 {[%clk 0:01:21.6]} 25... exf4 {[%clk 0:02:33]} 26. Rh3 {[%clk 0:01:17.2]}
26... Qc6+ {[%clk 0:02:33.4]} 27. Kh2 {[%clk 0:01:13.7]} 27... Rad8 {[%clk
0:02:33.6]} 28. Qe2 {[%clk 0:01:03.7]} 28... f3 {[%clk 0:02:31.2]} 29. Qf2
{[%clk 0:01:03.6]} 29... Qd6+ {[%clk 0:02:30.7]} 30. Kh1 {[%clk 0:01:00.5]}
30... Qf4 {[%clk 0:02:29.7]} 31. Rh4 {[%clk 0:00:53.5]} 31... Rd1+ {[%clk
0:02:28.8]} 32. Qg1 {[%clk 0:00:50.5]} 32... Qxh4# {[%clk 0:02:28.9]} 0-1

[Event "Early-Titled-Tuesday-Blitz-July-09-2024"]
[Site "Chess.com"]
[Date "2024.07.09"]
[Round "2"]
[White "BelyakovBogdan"]
[Black "Defenstrator"]
[Result "0-1"]
[WhiteElo "2639"]
[BlackElo "2411"]
[TimeControl "180+1"]
[EndTime "8:14:15 PDT"]
[Termination "Defenstrator won by checkmate"]

1. e4 {[%clk 0:03:00]} 1... c6 {[%clk 0:03:00.3]} 2. d4 {[%clk 0:02:59.5]} 2...
d5 {[%clk 0:03:00.8]} 3. exd5 {[%clk 0:03:00.4]} 3... cxd5 {[%clk 0:03:01.6]} 4.
Bd3 {[%clk 0:03:00.5]} 4... Nc6 {[%clk 0:03:02.3]} 5. c3 {[%clk 0:03:00.1]} 5...
e5 {[%clk 0:03:01.1]} 6. dxe5 {[%clk 0:02:59.7]} 6... Nxe5 {[%clk 0:03:02]} 7.
Nf3 {[%clk 0:02:58.3]} 7... Nxd3+ {[%clk 0:02:59.3]} 8. Qxd3 {[%clk 0:02:57.8]}
8... Nf6 {[%clk 0:02:59.6]} 9. O-O {[%clk 0:02:53.4]} 9... Be7 {[%clk
0:02:59.1]} 10. Be3 {[%clk 0:02:50.8]} 10... O-O {[%clk 0:02:59.4]} 11. Nbd2
{[%clk 0:02:50.5]} 11... Be6 {[%clk 0:02:54.8]} 12. Bd4 {[%clk 0:02:50.1]} 12...
Qc7 {[%clk 0:02:48.7]} 13. Rfe1 {[%clk 0:02:46.4]} 13... Rad8 {[%clk 0:02:47.6]}
14. Ng5 {[%clk 0:02:44.7]} 14... g6 {[%clk 0:02:19.7]} 15. Rxe6 {[%clk
0:02:38.2]} 15... Ng4 {[%clk 0:02:07.7]} 16. Ndf3 {[%clk 0:02:27.6]} 16... Bxg5
{[%clk 0:02:03]} 17. Re2 {[%clk 0:02:18.2]} 17... Rfe8 {[%clk 0:01:49.6]} 18.
Rae1 {[%clk 0:02:17.1]} 18... Rxe2 {[%clk 0:01:44.4]} 19. Qxe2 {[%clk 0:02:18]}
19... Bf6 {[%clk 0:01:38.1]} 20. h3 {[%clk 0:01:27.4]} 20... Bxd4 {[%clk
0:01:33.7]} 21. Nxd4 {[%clk 0:01:28.3]} 21... Qh2+ {[%clk 0:01:29.5]} 22. Kf1
{[%clk 0:01:25.8]} 22... Qh1# {[%clk 0:01:30.2]} 0-1

[Event "Early-Titled-Tuesday-Blitz-July-09-2024"]
[Site "Chess.com"]
[Date "2024.07.09"]
[Round "2"]
[White "yonaltimur"]
[Black "DFeco"]
[Result "1-0"]
[WhiteElo "2249"]
[BlackElo "2462"]
[TimeControl "180+1"]
[EndTime "8:14:33 PDT"]
[Termination "yonaltimur won by resignation"]

1. e4 {[%clk 0:03:00.9]} 1... e5 {[%clk 0:03:00.1]} 2. Nf3 {[%clk 0:03:00.9]}
2... Nc6 {[%clk 0:03:00.2]} 3. Bb5 {[%clk 0:03:01.5]} 3... g6 {[%clk 0:02:58.8]}
4. O-O {[%clk 0:02:36.6]} 4... Bg7 {[%clk 0:02:58.7]} 5. c3 {[%clk 0:02:36.4]}
5... a6 {[%clk 0:02:59.1]} 6. Ba4 {[%clk 0:02:36.3]} 6... d6 {[%clk 0:02:59.6]}
7. d4 {[%clk 0:02:36.2]} 7... Bd7 {[%clk 0:03:00.3]} 8. Bg5 {[%clk 0:02:33.9]}
8... f6 {[%clk 0:02:59.8]} 9. Be3 {[%clk 0:02:32.1]} 9... Nh6 {[%clk 0:03:00.4]}
10. Nbd2 {[%clk 0:02:30.7]} 10... Nf7 {[%clk 0:03:00]} 11. Ne1 {[%clk
0:02:20.4]} 11... O-O {[%clk 0:02:56.5]} 12. f4 {[%clk 0:02:20.1]} 12... exd4
{[%clk 0:02:31.1]} 13. cxd4 {[%clk 0:02:19.6]} 13... f5 {[%clk 0:02:31.1]} 14.
e5 {[%clk 0:02:19.6]} 14... dxe5 {[%clk 0:02:28]} 15. dxe5 {[%clk 0:02:10.9]}
15... Qe7 {[%clk 0:02:28]} 16. Nd3 {[%clk 0:02:01.5]} 16... b6 {[%clk
0:02:15.6]} 17. Rc1 {[%clk 0:01:59.2]} 17... Ncd8 {[%clk 0:02:10.5]} 18. Bb3
{[%clk 0:01:51.7]} 18... c5 {[%clk 0:02:06.9]} 19. Nc4 {[%clk 0:01:39.3]} 19...
Rb8 {[%clk 0:02:02.4]} 20. Nxb6 {[%clk 0:01:34.9]} 20... Nb7 {[%clk 0:01:16]}
21. Nxd7 {[%clk 0:01:24]} 21... Qxd7 {[%clk 0:01:09.2]} 22. e6 {[%clk
0:01:21.9]} 1-0